Service Area,Expense Type,Date,Transaction Number,Amount,Supplier
Homelessness Prevention,Accom Csts Serv Usrs,2010-04-01,5105677152,611.6,Swanborough House
Homelessness Prevention,Accom Csts Serv Usrs,2010-04-08,1900159400,650.0,Marvins Ltd
Homelessness Prevention,Accom Csts Serv Usrs,2010-04-08,1900159401,625.0,Mm Holmes T/A Partlands Rentals
Homelessness Prevention,Accom Csts Serv Usrs,2010-04-13,1900159785,520.0,J S Maclean
Homelessness Prevention,Accom Csts Serv Usrs,2010-04-15,1900164433,595.0,Seafields
Homelessness Prevention,Accom Csts Serv Usrs,2010-04-15,1900164480,600.0,Redacted Personal Data
Homelessness Prevention,Accom Csts Serv Usrs,2010-04-16,1900164636,550.0,P Cannon
Homelessness Prevention,Pay To Pvte Contract,2010-04-29,1900171065,575.0,Redacted Personal Data
Homelessness Prevention,Accom Csts Serv Usrs,2010-04-29,1900171045,650.0,M Holbrook & Ee Mclaughlan Petty
Homelessness Prevention,Pay To Pvte Contract,2010-04-29,1900171064,1047.6,Redacted Personal Data
Homelessness Prevention,Accom Csts Serv Usrs,2010-04-29,1900171041,575.0,Island Properties Res.Lettings
Homelessness Prevention,Pay To Pvte Contract,2010-04-29,1900171076,1150.0,P & R Cross
Homelessness Prevention,Accom Csts Serv Usrs,2010-05-11,1900172090,570.0,Dalton Enterprises
Homelessness Prevention,Accom Csts Serv Usrs,2010-05-14,1900176796,525.0,Redacted Personal Data
Homelessness Prevention,Accom Csts Serv Usrs,2010-05-18,1900177133,550.0,Hose Rhodes Dickson Lettings Ltd
Homelessness Prevention,Accom Csts Serv Usrs,2010-05-20,1900177530,650.0,Redacted Personal Data
Homelessness Prevention,Accom Csts Serv Usrs,2010-05-20,1900177494,625.0,Island Lettings
Homelessness Prevention,Accom Csts Serv Usrs,2010-05-20,1900177494,525.0,Island Lettings
Homelessness Prevention,Accom Csts Serv Usrs,2010-05-27,1900183476,600.0,Marvins Ltd
Homelessness Prevention,Pay To Pvte Contract,2010-05-27,1900183640,561.0,Redacted Personal Data
Homelessness Prevention,Accom Csts Serv Usrs,2010-05-27,1900183425,675.0,Island Lettings
Homelessness Prevention,Accom Csts Serv Usrs,2010-05-28,1900183738,675.0,Green & Wight Lettings Ltd
Homelessness Prevention,Accom Csts Serv Usrs,2010-06-03,1900184381,575.0,Helena Develpoments Ltd
Homelessness Prevention,Accom Csts Serv Usrs,2010-06-08,1900184961,650.0,Island Lettings
Homelessness Prevention,Pay To Pvte Contract,2010-06-10,1900189635,561.0,Redacted Personal Data
Homelessness Prevention,Pay To Pvte Contract,2010-06-11,1900189800,575.0,Redacted Personal Data
Homelessness Prevention,Pay To Pvte Contract,2010-06-15,1900190076,575.0,P & R Cross
Homelessness Prevention,Pay To Pvte Contract,2010-06-15,1900190021,575.0,Redacted Personal Data
Homelessness Prevention,Accom Csts Serv Usrs,2010-06-25,1900196300,625.0,Hose Rhodes Dickson Lettings Ltd
Homelessness Prevention,Accom Csts Serv Usrs,2010-07-06,1900197403,550.0,Redacted Personal Data
Homelessness Prevention,Accom Csts Serv Usrs,2010-07-08,1900201983,575.0,The Barnstaple Estate Ltd
Homelessness Prevention,Accom Csts Serv Usrs,2010-07-08,1900201990,660.0,Arthur Wheeler Estate Agents
Homelessness Prevention,Self Directed Suppt,2010-07-15,1900202689,550.0,More Lettings Centre
Homelessness Prevention,Pay To Pvte Contract,2010-07-15,1900202679,1150.0,Redacted Personal Data
Homelessness Prevention,Pay To Pvte Contract,2010-07-15,1900202678,1085.41,Redacted Personal Data
Homelessness Prevention,Accom Csts Serv Usrs,2010-07-20,1900203078,650.0,S D Residental
Homelessness Prevention,Accom Csts Serv Usrs,2010-07-20,1900203081,695.0,Seafields
Homelessness Prevention,Pay To Pvte Contract,2010-08-02,1900209416,561.0,Redacted Personal Data
Homelessness Prevention,Accom Csts Serv Usrs,2010-08-05,1900214023,675.0,Island Lettings
Homelessness Prevention,Accom Csts Serv Usrs,2010-08-09,1900214373,650.0,Arthur Wheeler Estate Agents
Homelessness Prevention,Accom Csts Serv Usrs,2010-08-10,1900214447,550.0,Crocker Lettings
Homelessness Prevention,Accom Csts Serv Usrs,2010-08-10,1900214408,550.0,Redacted Personal Data
Homelessness Prevention,Pay To Pvte Contract,2010-08-10,1900214411,575.0,Redacted Personal Data
Homelessness Prevention,Accom Csts Serv Usrs,2010-08-10,1900214448,665.0,Island Lettings
Homelessness Prevention,Pay To Pvte Contract,2010-08-11,1900214464,560.0,Redacted Personal Data
Homelessness Prevention,Pay To Pvte Contract,2010-08-11,1900214465,593.9,Redacted Personal Data
Homelessness Prevention,Pay To Pvte Contract,2010-08-18,1900215229,561.0,Redacted Personal Data
Homelessness Prevention,Pay To Pvte Contract,2010-08-23,1900220699,1282.84,Redacted Personal Data
Homelessness Prevention,Accom Csts Serv Usrs,2010-09-01,5000098684,1140.0,Dalton Property Ltd
Homelessness Prevention,Pay To/Aid Prov To C,2010-09-10,1900227043,525.0,Martin Hargreaves Estate Agency
Homelessness Prevention,Accom Csts Serv Usrs,2010-09-10,1900227047,650.0,Island Lettings
Homelessness Prevention,Accom Csts Serv Usrs,2010-09-13,1900227245,675.0,Helena Develpoments Ltd
Homelessness Prevention,Pay To Pvte Contract,2010-09-14,1900227350,575.0,Redacted Personal Data
Homelessness Prevention,Accom Csts Serv Usrs,2010-09-17,1900232717,550.0,More Lettings Centre
Homelessness Prevention,Pay To Pvte Contract,2010-09-22,1900233056,561.0,Redacted Personal Data
Homelessness Prevention,Accom Csts Serv Usrs,2010-09-23,1900233297,900.0,Dalton Enterprises
Homelessness Prevention,Accom Csts Serv Usrs,2010-09-30,5000104231,1930.0,Seafields
Homelessness Prevention,Accom Csts Serv Usrs,2010-10-01,1900238505,575.0,Redacted Personal Data
Homelessness Prevention,Pay To/Aid Prov To C,2010-10-04,5000104776,5000.0,Western Challenge Housing Assoc
Homelessness Prevention,Accom Csts Serv Usrs,2010-10-04,1900238686,575.0,The Barnstaple Estate Ltd
Homelessness Prevention,Accom Csts Serv Usrs,2010-10-04,1900238687,550.0,Redacted Personal Data
Homelessness Prevention,Accom Csts Serv Usrs,2010-10-04,1900238676,535.0,Easylet Islandwide
Homelessness Prevention,Accom Csts Serv Usrs,2010-10-13,1900240597,550.0,Arthur Wheeler Estate Agents
Homelessness Prevention,Accom Csts Serv Usrs,2010-10-13,1900240594,775.0,Crocker Lettings
Homelessness Prevention,Pay To Pvte Contract,2010-10-14,1900245018,553.91,Redacted Personal Data
Homelessness Prevention,Pay To Pvte Contract,2010-10-14,1900245015,764.04,Redacted Personal Data
Homelessness Prevention,Accom Csts Serv Usrs,2010-10-19,1900245711,575.0,Marvins Ltd
Homelessness Prevention,Accom Csts Serv Usrs,2010-10-27,1900247534,550.0,Seafields
Homelessness Prevention,Accom Csts Serv Usrs,2010-10-28,1900252046,1035.24,South Wight Housing Association
Homelessness Prevention,Pay To Pvte Contract,2010-10-28,1900251410,561.0,Redacted Personal Data
Homelessness Prevention,Pay To Pvte Contract,2010-10-28,1900251419,575.0,Redacted Personal Data
Homelessness Prevention,Accom Csts Serv Usrs,2010-10-28,1900251417,595.0,More Lettings Centre
Homelessness Prevention,Accom Csts Serv Usrs,2010-10-28,1900251411,650.0,Island Lettings
Homelessness Prevention,Accom Csts Serv Usrs,2010-10-28,1900251411,750.0,Island Lettings
Homelessness Prevention,Accom Csts Serv Usrs,2010-11-02,1900252399,550.0,Redacted Personal Data
Homelessness Prevention,Accom Csts Serv Usrs,2010-11-08,1900253780,875.0,Seafields
Homelessness Prevention,Pay To Pvte Contract,2010-11-11,1900259071,1630.32,Redacted Personal Data
Homelessness Prevention,Pay To Pvte Contract,2010-11-12,1900259267,1150.0,Redacted Personal Data
Homelessness Prevention,Pay To Pvte Contract,2010-11-22,1900260414,575.0,Redacted Personal Data
Homelessness Prevention,Pay To Pvte Contract,2010-11-26,1900265378,1944.55,Redacted Personal Data
Homelessness Prevention,Accom Csts Serv Usrs,2010-12-03,1900266150,640.0,Hose Rhodes Dickson Lettings Ltd
Homelessness Prevention,Accom Csts Serv Usrs,2010-12-03,1900266151,900.0,More Lettings Centre
Homelessness Prevention,Pay To Pvte Contract,2010-12-07,1900266420,575.0,Redacted Personal Data
Homelessness Prevention,Accom Csts Serv Usrs,2010-12-15,1900272347,510.0,Island Lettings
Homelessness Prevention,Pay To Pvte Contract,2010-12-20,1900274957,575.0,Redacted Personal Data
Homelessness Prevention,Pay To Pvte Contract,2010-12-20,1900273834,550.0,Redacted Personal Data
Homelessness Prevention,Pay To Pvte Contract,2010-12-22,1900277761,1395.75,Redacted Personal Data
Homelessness Prevention,Accom Csts Serv Usrs,2010-12-22,1900277760,520.0,Redacted Personal Data
Homelessness Prevention,Pay To Pvte Contract,2010-12-22,1900277758,1039.5,Redacted Personal Data
Homelessness Prevention,Pay To Pvte Contract,2010-12-22,1900277748,1100.11,Redacted Personal Data
Homelessness Prevention,Accom Csts Serv Usrs,2010-12-22,1900277744,900.0,More Lettings Centre
Homelessness Prevention,Pay To Pvte Contract,2011-01-06,5000120038,650.53,Medina Housing Assoc [Re]
Homelessness Prevention,Pay To Pvte Contract,2011-01-06,5000120038,836.07,Medina Housing Assoc [Re]
Homelessness Prevention,Pay To Pvte Contract,2011-01-10,1900284213,575.0,Redacted Personal Data
Homelessness Prevention,Accom Csts Serv Usrs,2011-01-10,1900284322,550.0,The Barnstaple Estate Ltd
Homelessness Prevention,Accom Csts Serv Usrs,2011-01-13,1900284696,550.0,Hose Rhodes Dickson Lettings Ltd
Homelessness Prevention,Pay To Pvte Contract,2011-01-20,1900290057,1910.41,Rustell Farrow And Cozens
Homelessness Prevention,Accom Csts Serv Usrs,2011-01-20,1900290061,673.14,Solent Housing Cooperative Ltd
Homelessness Prevention,Pay To Pvte Contract,2011-01-26,1900290546,2360.0,Sarah Fish
Homelessness Prevention,Accom Csts Serv Usrs,2011-01-31,1900291284,550.0,More Lettings Centre
Homelessness Prevention,Pay To Pvte Contract,2011-02-02,1900291435,1976.92,Island Lettings
Homelessness Prevention,Accom Csts Serv Usrs,2011-02-02,1900291434,850.0,Marvins Ltd
Homelessness Prevention,Accom Csts Serv Usrs,2011-02-09,1900297486,625.0,Countrywide Residential Lettings
Homelessness Prevention,Accom Csts Serv Usrs,2011-02-09,1900297489,650.0,Arthur Wheeler Estate Agents
Homelessness Prevention,Accom Csts Serv Usrs,2011-02-09,1900297481,675.0,More Lettings Centre
Homelessness Prevention,Pay To Pvte Contract,2011-02-10,1900297757,575.0,Redacted Personal Data
Homelessness Prevention,Pay To Pvte Contract,2011-02-11,1900297986,550.0,Abiggerfish.Co.Uk
Homelessness Prevention,Accom Csts Serv Usrs,2011-02-24,1900304079,550.0,Hose Rhodes Dickson Lettings Ltd
Homelessness Prevention,Accom Csts Serv Usrs,2011-03-01,1900304724,550.0,Marvins Ltd
Homelessness Prevention,Pay To Pvte Contract,2011-03-18,1900316808,1727.0,Redacted Personal Data
Homelessness Prevention,Pay To Pvte Contract,2011-03-18,1900316948,593.0,Redacted Personal Data
Homelessness Prevention,Pay To Pvte Contract,2011-03-18,1900316946,550.0,Redacted Personal Data
Homelessness Prevention,Pay To Pvte Contract,2011-03-18,1900316943,550.0,Rustell Farrow And Cozens
Homelessness Prevention,Accom Csts Serv Usrs,2011-03-29,1900318300,675.0,Hose Rhodes Dickson Lettings Ltd
Homelessness Prevention,Accom Csts Serv Usrs,2011-03-29,1900318301,675.0,Redacted Personal Data
Homelessness Prevention,Accom Csts Serv Usrs,2011-04-12,1900325337,525.0,More Lettings Centre
Homelessness Prevention,Accom Csts Serv Usrs,2011-04-15,1900330579,595.0,Watson Bull & Porter Lettings
Homelessness Prevention,Accom Csts Serv Usrs,2011-04-26,1900331415,650.0,Island Lettings
Homelessness Prevention,Pay To/Aid Prov To C,2011-04-26,1900331377,1740.0,Watson Bull & Porter Lettings
Homelessness Prevention,Accom Csts Serv Usrs,2011-04-26,1900331414,550.0,More Lettings Centre
Homelessness Prevention,Accom Csts Serv Usrs,2011-05-04,1900337218,675.0,Arthur Wheeler Estate Agents
Homelessness Prevention,Pay To Pvte Contract,2011-05-04,5000139560,599.59,Medina Housing Assoc [Re]
Homelessness Prevention,Accom Csts Serv Usrs,2011-05-04,1900337217,650.0,Watson Bull & Porter Lettings
Homelessness Prevention,Pay To Pvte Contract,2011-05-05,1900337468,675.0,W J & D A Higgs
Homelessness Prevention,Pay To Pvte Contract,2011-05-05,1900337467,1350.0,W J & D A Higgs
Homelessness Prevention,Accom Csts Serv Usrs,2011-05-10,1900337869,550.0,Hose Rhodes Dickson Lettings Ltd
Homelessness Prevention,Accom Csts Serv Usrs,2011-05-12,1900342639,650.0,Crocker Lettings
Homelessness Prevention,Pay To Pvte Contract,2011-05-13,1900342970,983.97,Island Lettings
Homelessness Prevention,Accom Csts Serv Usrs,2011-05-18,1900343691,570.0,Dalton Property Ltd Block
Homelessness Prevention,Accom Csts Serv Usrs,2011-05-25,1900349364,650.0,Redacted Personal Data
Homelessness Prevention,Pay To/Aid Prov To C,2011-05-25,1900347132,1050.0,More Lettings Centre
Homelessness Prevention,Pay To Pvte Contract,2011-06-03,1900351066,929.56,Island Lettings
Homelessness Prevention,Accom Csts Serv Usrs,2011-06-07,1900351347,525.0,Kingston & Grist
Homelessness Prevention,Accom Csts Serv Usrs,2011-06-09,1900356294,615.0,Island Lettings
Homelessness Prevention,Accom Csts Serv Usrs,2011-06-09,1900356260,525.0,More Lettings Centre
Homelessness Prevention,Accom Csts Serv Usrs,2011-06-09,1900356291,650.0,Hose Rhodes Dickson Lettings Ltd
Homelessness Prevention,Accom Csts Serv Usrs,2011-06-15,1900356612,950.0,Countrywide Residential Lettings
Homelessness Prevention,Pay To Pvte Contract,2011-06-15,1900356681,1122.0,Abiggerfish.Co.Uk
Homelessness Prevention,Accom Csts Serv Usrs,2011-06-23,1900362783,550.0,Dalton Enterprises
Homelessness Prevention,Accom Csts Serv Usrs,2011-06-29,1900363370,635.0,Green & Wight Lettings Ltd
Homelessness Prevention,Accom Csts Serv Usrs,2011-06-29,1900363438,550.0,The Barnstaple Estate Ltd
Homelessness Prevention,Accom Csts Serv Usrs,2011-06-30,1900363593,1150.0,Marvins Ltd
Homelessness Prevention,Accom Csts Serv Usrs,2011-07-05,1900364095,600.0,Hose Rhodes Dickson Lettings Ltd
Homelessness Prevention,Pay To Pvte Contract,2011-07-06,5000148546,15000.0,Iw Law Centre Ltd
Homelessness Prevention,Pay To Pvte Contract,2011-07-06,5000148546,2500.0,Iw Law Centre Ltd
Homelessness Prevention,Accom Csts Serv Usrs,2011-07-14,1900369523,545.0,More Lettings Centre
Homelessness Prevention,Pay To Pvte Contract,2011-07-15,1900369661,561.0,Abiggerfish.Co.Uk
Homelessness Prevention,Pay To Pvte Contract,2011-07-15,1900369662,562.5,Redacted Personal Data
Homelessness Prevention,Accom Csts Serv Usrs,2011-07-22,1700044078,-650.0,Island Lettings
Homelessness Prevention,Accom Csts Serv Usrs,2011-07-22,1900375540,650.0,Island Lettings
Homelessness Prevention,Accom Csts Serv Usrs,2011-07-22,1900375548,650.0,Island Lettings
Homelessness Prevention,Accom Csts Serv Usrs,2011-07-22,5000151478,850.0,Dalton Property Ltd [Hz]
Homelessness Prevention,Accom Csts Serv Usrs,2011-07-26,1900375859,895.0,Countrywide Residential Lettings
Homelessness Prevention,Pay To Pvte Contract,2011-07-28,1900376144,1061.54,Redacted Personal Data
Homelessness Prevention,Accom Csts Serv Usrs,2011-08-04,1900381275,650.0,Countrywide Residential Lettings
Homelessness Prevention,Accom Csts Serv Usrs,2011-08-08,1900381479,550.0,Arthur Wheeler Estate Agents
Homelessness Prevention,Accom Csts Serv Usrs,2011-08-09,1900381559,725.0,Arthur Wheeler Estate Agents
Homelessness Prevention,Pay To/Aid Prov To C,2011-08-23,1900388086,800.0,Arthur Wheeler Estate Agents
Homelessness Prevention,Accom Csts Serv Usrs,2011-08-30,1900388778,550.0,Town And Village
Homelessness Prevention,Accom Csts Serv Usrs,2011-09-07,1900394103,775.0,Countrywide Residential Lettings
Homelessness Prevention,Pay To Pvte Contract,2011-09-12,1900394425,1122.0,Abiggerfish.Co.Uk
Homelessness Prevention,Pay To/Aid Prov To C,2011-09-15,1900399915,1150.0,Hose Rhodes Dickson Lettings Ltd
Homelessness Prevention,Pay To Pvte Contract,2011-09-20,1900400309,650.0,Redacted Personal Data
Homelessness Prevention,Accom Csts Serv Usrs,2011-09-22,1900400610,650.0,Hose Rhodes Dickson Lettings Ltd
Homelessness Prevention,Accom Csts Serv Usrs,2011-09-27,1900401110,595.0,Island Lettings
Homelessness Prevention,Accom Csts Serv Usrs,2011-09-30,1900406142,650.0,Arthur Wheeler Estate Agents
Homelessness Prevention,Accom Csts Serv Usrs,2011-10-07,1900406969,525.0,Hose Rhodes Dickson Lettings Ltd
Homelessness Prevention,Accom Csts Serv Usrs,2011-10-19,1900413095,550.0,Marvins Ltd
Homelessness Prevention,Accom Csts Serv Usrs,2011-10-20,1900413271,675.0,S D Residental
Homelessness Prevention,Pay To Pvte Contract,2011-10-26,1900418562,1860.0,Redacted Personal Data
Homelessness Prevention,Pay To Pvte Contract,2011-10-26,1900418562,1549.73,Redacted Personal Data
Homelessness Prevention,Accom Csts Serv Usrs,2011-10-28,1900418751,1050.0,Island Lettings
Homelessness Prevention,Pay To Pvte Contract,2011-11-01,1900419004,1150.0,Redacted Personal Data
Homelessness Prevention,Accom Csts Serv Usrs,2011-11-02,1900419274,650.0,Arthur Wheeler Estate Agents
Homelessness Prevention,Accom Csts Serv Usrs,2011-11-03,1900419308,525.0,Priory Property Services
Homelessness Prevention,Accom Csts Serv Usrs,2011-11-07,1900419655,525.0,Redacted Personal Data
Homelessness Prevention,Accom Csts Serv Usrs,2011-11-23,1900431478,650.0,Island Lettings
Homelessness Prevention,Accom Csts Serv Usrs,2011-11-28,1900431921,620.0,Seafields
Homelessness Prevention,Accom Csts Serv Usrs,2011-12-07,1900433337,900.0,Arthur Wheeler Estate Agents
Homelessness Prevention,Accom Csts Serv Usrs,2011-12-13,1900438706,585.0,Keyview Properties
Homelessness Prevention,Accom Csts Serv Usrs,2011-12-14,1900438708,675.0,Abiggerfish.Co.Uk
Homelessness Prevention,Accom Csts Serv Usrs,2011-12-14,1900438716,675.0,Redacted Personal Data
Homelessness Prevention,Pay To Pvte Contract,2011-12-19,1900439274,575.0,Redacted Personal Data
Homelessness Prevention,Pay To Pvte Contract,2011-12-20,1900439412,582.2,Redacted Personal Data
Homelessness Prevention,Payment To Private Contractors,2012-01-18,5000176084,3350.6,Redacted Personal Data
Homelessness Prevention,Payments To/Aid Provided To Clients,2012-01-26,1700044910,2262.12,Otv Cheque Company Payment
